[Event "Titled Tuesday Blitz December 13 Late 2022"]
[White "Crevatin, Leo"]
[Black "Holt, Conrad"]
[WhiteFideId "1726307"]
[BlackFideId "2034387"]
[WhiteElo "2190"]
[BlackElo "2592"]
[Result "1/2-1/2"]
[Round "03"]
[TimeControl "180+1"]
[Date "2022.12.13"]
[WhiteClock "0:00:05"]
[BlackClock "0:00:05"]

1. d4 {[%clk 0:03:00]}  d5 {[%clk 0:02:57]} 2. Bf4 {[%clk 0:03:00]}  c5 {[%clk 0:02:56]} 3. e3 {[%clk 0:03:00]}  Nc6 {[%clk 0:02:56]} 4. Nf3 {[%clk 0:03:00]}  Nf6 {[%clk 0:02:54]} 5. Nbd2 {[%clk 0:02:59]}  e6 {[%clk 0:02:50]} 6. c3 {[%clk 0:02:59]}  Be7 {[%clk 0:02:49]} 7. Bd3 {[%clk 0:02:49]}  Nh5 {[%clk 0:02:39]} 8. Be5 {[%clk 0:02:49]}  cxd4 {[%clk 0:02:34]} 9. exd4 {[%clk 0:02:42]}  Nxe5 {[%clk 0:02:31]} 10. Nxe5 {[%clk 0:02:42]}  Nf4 {[%clk 0:02:30]} 11. Bb5+ {[%clk 0:02:41]}  Kf8 {[%clk 0:02:29]} 12. Qf3 {[%clk 0:02:34]}  g5 {[%clk 0:02:24]} 13. g3 {[%clk 0:02:33]}  f6 {[%clk 0:02:24]} 14. gxf4 {[%clk 0:02:31]}  fxe5 {[%clk 0:02:24]} 15. fxe5+ {[%clk 0:02:30]}  Kg7 {[%clk 0:02:25]} 16. Nf1 {[%clk 0:02:22]}  Rf8 {[%clk 0:02:21]} 17. Qe2 {[%clk 0:02:21]}  Bd7 {[%clk 0:02:09]} 18. Bxd7 {[%clk 0:02:14]}  Qxd7 {[%clk 0:02:09]} 19. Ng3 {[%clk 0:02:14]}  Kh8 {[%clk 0:02:04]} 20. Rd1 {[%clk 0:01:55]}  b5 {[%clk 0:02:02]} 21. Rd3 {[%clk 0:01:50]}  b4 {[%clk 0:01:58]} 22. O-O {[%clk 0:01:47]}  Rf4 {[%clk 0:01:52]} 23. cxb4 {[%clk 0:01:33]}  Bxb4 {[%clk 0:01:51]} 24. Rc1 {[%clk 0:01:32]}  Raf8 {[%clk 0:01:49]} 25. f3 {[%clk 0:01:29]}  Qf7 {[%clk 0:01:43]} 26. Rf1 {[%clk 0:01:23]}  h5 {[%clk 0:01:40]} 27. Qg2 {[%clk 0:01:13]}  Qg6 {[%clk 0:01:39]} 28. Rdd1 {[%clk 0:01:06]}  Kh7 {[%clk 0:01:33]} 29. Ne2 {[%clk 0:01:04]}  R4f7 {[%clk 0:01:32]} 30. Kh1 {[%clk 0:00:42]}  Be7 {[%clk 0:01:17]} 31. Rc1 {[%clk 0:00:40]}  Qd3 {[%clk 0:01:02]} 32. Rc3 {[%clk 0:00:39]}  Qb5 {[%clk 0:00:56]} 33. Rc2 {[%clk 0:00:24]}  g4 {[%clk 0:00:53]} 34. f4 {[%clk 0:00:24]}  a5 {[%clk 0:00:40]} 35. Rfc1 {[%clk 0:00:23]}  Bg5 {[%clk 0:00:31]} 36. Rc7 {[%clk 0:00:17]}  Bh6 {[%clk 0:00:20]} 37. b3 {[%clk 0:00:11]}  a4 {[%clk 0:00:10]} 38. bxa4 {[%clk 0:00:10]}  Qxa4 {[%clk 0:00:10]} 39. h3 {[%clk 0:00:10]}  Qa5 {[%clk 0:00:02]} 40. Rxf7+ {[%clk 0:00:10]}  Rxf7 {[%clk 0:00:03]} 41. hxg4 {[%clk 0:00:10]}  hxg4 {[%clk 0:00:02]} 42. Qxg4 {[%clk 0:00:09]}  Qd2 {[%clk 0:00:03]} 43. Rg1 {[%clk 0:00:08]}  Rg7 {[%clk 0:00:03]} 44. Qh5 {[%clk 0:00:03]}  Rxg1+ {[%clk 0:00:04]} 45. Nxg1 {[%clk 0:00:03]}  Qxf4 {[%clk 0:00:03]} 46. Nf3 {[%clk 0:00:03]}  Qe4 {[%clk 0:00:03]} 47. Kg2 {[%clk 0:00:02]}  Kg7 {[%clk 0:00:03]} 48. Kg3 {[%clk 0:00:02]}  Bf4+ {[%clk 0:00:03]} 49. Kg2 {[%clk 0:00:02]}  Qe2+ {[%clk 0:00:03]} 50. Kh3 {[%clk 0:00:03]}  Qf1+ {[%clk 0:00:03]} 51. Kg4 {[%clk 0:00:03]}  Bh6 {[%clk 0:00:04]} 52. Qh3 {[%clk 0:00:02]}  Qd3 {[%clk 0:00:03]} 53. Qg2 {[%clk 0:00:01]}  Qf5+ {[%clk 0:00:03]} 54. Kg3 {[%clk 0:00:02]}  Kf8 {[%clk 0:00:04]} 55. Kf2 {[%clk 0:00:02]}  Bf4 {[%clk 0:00:04]} 56. Qh1 {[%clk 0:00:01]}  Qc2+ {[%clk 0:00:04]} 57. Kf1 {[%clk 0:00:01]}  Qb1+ {[%clk 0:00:04]} 58. Kg2 {[%clk 0:00:02]}  Qxa2+ {[%clk 0:00:04]} 59. Kh3 {[%clk 0:00:02]}  Qa7 {[%clk 0:00:05]} 60. Qg2 {[%clk 0:00:02]}  Qh7+ {[%clk 0:00:05]} 61. Kg4 {[%clk 0:00:02]}  Qf5+ {[%clk 0:00:06]} 62. Kh4 {[%clk 0:00:02]}  Be3 {[%clk 0:00:06]} 63. Qg4 {[%clk 0:00:02]}  Qh7+ {[%clk 0:00:05]} 64. Qh5 {[%clk 0:00:03]}  Qe4+ {[%clk 0:00:05]} 65. Qg4 {[%clk 0:00:03]}  Ke7 {[%clk 0:00:06]} 66. Kg3 {[%clk 0:00:03]}  Qh7 {[%clk 0:00:05]} 67. Qh4+ {[%clk 0:00:02]}  Qxh4+ {[%clk 0:00:05]} 68. Kxh4 {[%clk 0:00:03]}  Kf7 {[%clk 0:00:04]} 69. Kh5 {[%clk 0:00:04]}  Ke7 {[%clk 0:00:04]} 70. Kg6 {[%clk 0:00:04]}  Bf2 {[%clk 0:00:04]} 71. Kg5 {[%clk 0:00:04]}  Be3+ {[%clk 0:00:05]} 72. Kg6 {[%clk 0:00:04]}  Bf2 {[%clk 0:00:05]} 73. Kg5 {[%clk 0:00:05]}  Be3+ {[%clk 0:00:05]} 74. Kg6 {[%clk 0:00:05]} 1/2-1/2


[Site "https://www.chess.com"]

[Event "Titled Tuesday Blitz December 13 Late 2022"]
[White "Espinosa, Pedro"]
[Black "Reprintsev, Alexander"]
[WhiteFideId "30921066"]
[BlackFideId "14100541"]
[WhiteElo "2748"]
[BlackElo "2465"]
[Result "0-1"]
[Round "03"]
[TimeControl "180+1"]
[Date "2022.12.14"]
[WhiteClock "0:00:07"]
[BlackClock "0:00:14"]

1. d4 {[%clk 0:03:00]}  d5 {[%clk 0:02:59]} 2. c4 {[%clk 0:03:00]}  e5 {[%clk 0:02:59]} 3. dxe5 {[%clk 0:03:00]}  d4 {[%clk 0:02:59]} 4. Nf3 {[%clk 0:03:00]}  Nc6 {[%clk 0:02:59]} 5. Nbd2 {[%clk 0:02:58]}  a5 {[%clk 0:02:51]} 6. g3 {[%clk 0:02:55]}  Bf5 {[%clk 0:02:43]} 7. Nb3 {[%clk 0:02:34]}  Bb4+ {[%clk 0:02:36]} 8. Bd2 {[%clk 0:02:34]}  Be7 {[%clk 0:02:26]} 9. Bg2 {[%clk 0:02:30]}  a4 {[%clk 0:02:25]} 10. Nc1 {[%clk 0:02:25]}  h5 {[%clk 0:01:57]} 11. h4 {[%clk 0:02:12]}  Nh6 {[%clk 0:01:57]} 12. O-O {[%clk 0:02:09]}  Ng4 {[%clk 0:01:56]} 13. Nd3 {[%clk 0:02:01]}  O-O {[%clk 0:01:42]} 14. Re1 {[%clk 0:01:28]}  Re8 {[%clk 0:01:41]} 15. Rc1 {[%clk 0:01:25]}  Bf8 {[%clk 0:01:38]} 16. Nf4 {[%clk 0:01:21]}  g6 {[%clk 0:01:22]} 17. e6 {[%clk 0:01:07]}  Bxe6 {[%clk 0:01:19]} 18. Nxe6 {[%clk 0:01:07]}  Rxe6 {[%clk 0:01:20]} 19. Ng5 {[%clk 0:01:06]}  Re7 {[%clk 0:01:11]} 20. Bf4 {[%clk 0:00:58]}  Bg7 {[%clk 0:01:08]} 21. Bd5 {[%clk 0:00:57]}  Nb4 {[%clk 0:00:58]} 22. Bxb7 {[%clk 0:00:49]}  Rb8 {[%clk 0:00:58]} 23. Bf3 {[%clk 0:00:44]}  Nxa2 {[%clk 0:00:55]} 24. Ra1 {[%clk 0:00:41]}  Rxb2 {[%clk 0:00:54]} 25. Qxa4 {[%clk 0:00:38]}  Nc3 {[%clk 0:00:53]} 26. Qc6 {[%clk 0:00:32]}  Bf8 {[%clk 0:00:16]} 27. Ra8 {[%clk 0:00:28]}  Rb8 {[%clk 0:00:16]} 28. Rxb8 {[%clk 0:00:28]}  Qxb8 {[%clk 0:00:17]} 29. Ra1 {[%clk 0:00:19]}  Qe8 {[%clk 0:00:17]} 30. Qxe8 {[%clk 0:00:18]}  Rxe8 {[%clk 0:00:17]} 31. Bxc7 {[%clk 0:00:18]}  Nxe2+ {[%clk 0:00:16]} 32. Bxe2 {[%clk 0:00:17]}  Rxe2 {[%clk 0:00:16]} 33. Ra8 {[%clk 0:00:15]}  Kg7 {[%clk 0:00:16]} 34. Nh3 {[%clk 0:00:15]}  d3 {[%clk 0:00:14]} 35. Nf4 {[%clk 0:00:13]}  d2 {[%clk 0:00:13]} 36. Nxe2 {[%clk 0:00:06]}  d1=Q+ {[%clk 0:00:13]} 37. Kg2 {[%clk 0:00:07]}  Qxe2 {[%clk 0:00:13]} 38. Bb6 {[%clk 0:00:07]}  Qe4+ {[%clk 0:00:13]} 39. Kg1 {[%clk 0:00:07]}  Qxa8 {[%clk 0:00:14]} 0-1


[Site "https://www.chess.com"]

[Event "Titled Tuesday Blitz December 13 Late 2022"]
[White "Fernandez Garcia, Gumersindo"]
[Black "Kanakaris, Georgios"]
[WhiteFideId "24516740"]
[BlackFideId "4209460"]
[WhiteElo "2442"]
[BlackElo "2684"]
[Result "0-1"]
[Round "03"]
[TimeControl "180+1"]
[Date "2022.12.14"]
[WhiteClock "0:00:24"]
[BlackClock "0:02:08"]

1. e4 {[%clk 0:03:00]}  e6 {[%clk 0:02:59]} 2. d4 {[%clk 0:03:00]}  d5 {[%clk 0:03:00]} 3. Bd3 {[%clk 0:03:00]}  c5 {[%clk 0:02:59]} 4. exd5 {[%clk 0:02:58]}  exd5 {[%clk 0:03:00]} 5. Nf3 {[%clk 0:02:56]}  Nc6 {[%clk 0:03:00]} 6. dxc5 {[%clk 0:02:56]}  Bxc5 {[%clk 0:02:59]} 7. O-O {[%clk 0:02:56]}  Nge7 {[%clk 0:02:58]} 8. Nc3 {[%clk 0:02:51]}  O-O {[%clk 0:02:57]} 9. Bg5 {[%clk 0:02:41]}  h6 {[%clk 0:02:52]} 10. Bh4 {[%clk 0:02:38]}  Bg4 {[%clk 0:02:52]} 11. h3 {[%clk 0:02:34]}  Bh5 {[%clk 0:02:48]} 12. Re1 {[%clk 0:02:28]}  Qc7 {[%clk 0:02:39]} 13. Bg3 {[%clk 0:02:22]}  Qxg3 {[%clk 0:02:38]} 14. Kh1 {[%clk 0:01:07]}  Bxf2 {[%clk 0:02:33]} 15. Rf1 {[%clk 0:01:01]}  Bxf3 {[%clk 0:02:30]} 16. Qxf3 {[%clk 0:00:59]}  Qxf3 {[%clk 0:02:30]} 17. gxf3 {[%clk 0:01:00]}  Bd4 {[%clk 0:02:29]} 18. Ne2 {[%clk 0:00:58]}  Bf6 {[%clk 0:02:27]} 19. Rab1 {[%clk 0:00:58]}  Rfe8 {[%clk 0:02:26]} 20. Ng3 {[%clk 0:00:51]}  a6 {[%clk 0:02:24]} 21. c3 {[%clk 0:00:49]}  Ne5 {[%clk 0:02:23]} 22. Bc2 {[%clk 0:00:46]}  Nc4 {[%clk 0:02:23]} 23. Rf2 {[%clk 0:00:32]}  Nc6 {[%clk 0:02:23]} 24. Bd3 {[%clk 0:00:30]}  Bh4 {[%clk 0:02:18]} 25. Kg2 {[%clk 0:00:30]}  Ne3+ {[%clk 0:02:12]} 26. Kh2 {[%clk 0:00:29]}  Ne5 {[%clk 0:02:11]} 27. Be2 {[%clk 0:00:24]}  Nf5 {[%clk 0:02:08]} 0-1


[Site "https://www.chess.com"]

[Event "Titled Tuesday Blitz December 13 Late 2022"]
[White "Firouzja, Alireza"]
[Black "Milikow, Yoav"]
[WhiteFideId "12573981"]
[BlackFideId "2822237"]
[WhiteElo "2904"]
[BlackElo "2416"]
[Result "1-0"]
[Round "03"]
[TimeControl "180+1"]
[Date "2022.12.13"]
[WhiteClock "0:02:18"]
[BlackClock "0:01:42"]

1. d4 {[%clk 0:03:00]}  Nf6 {[%clk 0:02:59]} 2. c4 {[%clk 0:03:01]}  e6 {[%clk 0:02:59]} 3. Nf3 {[%clk 0:03:01]}  d5 {[%clk 0:02:59]} 4. Bg5 {[%clk 0:03:01]}  Be7 {[%clk 0:02:56]} 5. e3 {[%clk 0:03:00]}  O-O {[%clk 0:02:56]} 6. Nc3 {[%clk 0:03:00]}  b6 {[%clk 0:02:55]} 7. Rc1 {[%clk 0:02:55]}  Bb7 {[%clk 0:02:55]} 8. Bxf6 {[%clk 0:02:55]}  Bxf6 {[%clk 0:02:55]} 9. cxd5 {[%clk 0:02:56]}  exd5 {[%clk 0:02:55]} 10. Bd3 {[%clk 0:02:57]}  Nd7 {[%clk 0:02:52]} 11. O-O {[%clk 0:02:55]}  a6 {[%clk 0:02:47]} 12. b4 {[%clk 0:02:50]}  Qe7 {[%clk 0:02:45]} 13. Qb3 {[%clk 0:02:50]}  Qd6 {[%clk 0:02:06]} 14. a4 {[%clk 0:02:42]}  Rfe8 {[%clk 0:02:03]} 15. Rc2 {[%clk 0:02:39]}  Rab8 {[%clk 0:02:03]} 16. b5 {[%clk 0:02:39]}  a5 {[%clk 0:02:02]} 17. Rfc1 {[%clk 0:02:39]}  Rbc8 {[%clk 0:02:02]} 18. h3 {[%clk 0:02:36]}  g6 {[%clk 0:01:57]} 19. Ne2 {[%clk 0:02:33]}  Re7 {[%clk 0:01:51]} 20. Nf4 {[%clk 0:02:32]}  Nf8 {[%clk 0:01:49]} 21. Rc6 {[%clk 0:02:26]}  Bxc6 {[%clk 0:01:43]} 22. Rxc6 {[%clk 0:02:27]}  Qb4 {[%clk 0:01:41]} 23. Qxb4 {[%clk 0:02:21]}  Bg7 {[%clk 0:01:42]} 24. Qxe7 {[%clk 0:02:18]} 1-0


[Site "https://www.chess.com"]

[Event "Titled Tuesday Blitz December 13 Late 2022"]
[White "Forgacs, Attila Jr."]
[Black "Ladan, Nicholas"]
[WhiteFideId "773654"]
[BlackFideId "30918855"]
[WhiteElo "2168"]
[BlackElo "2167"]
[Result "0-1"]
[Round "03"]
[TimeControl "180+1"]
[Date "2022.12.14"]
[WhiteClock "0:00:10"]
[BlackClock "0:01:43"]

1. e4 {[%clk 0:03:00]}  e5 {[%clk 0:02:59]} 2. Nf3 {[%clk 0:02:59]}  Nc6 {[%clk 0:02:59]} 3. Bb5 {[%clk 0:02:59]}  a6 {[%clk 0:02:58]} 4. Ba4 {[%clk 0:02:59]}  g6 {[%clk 0:02:55]} 5. c3 {[%clk 0:02:59]}  Bg7 {[%clk 0:02:55]} 6. d4 {[%clk 0:02:59]}  exd4 {[%clk 0:02:49]} 7. cxd4 {[%clk 0:02:59]}  b5 {[%clk 0:02:48]} 8. Bc2 {[%clk 0:02:58]}  Nge7 {[%clk 0:02:48]} 9. O-O {[%clk 0:02:57]}  O-O {[%clk 0:02:48]} 10. Nc3 {[%clk 0:02:56]}  d6 {[%clk 0:02:48]} 11. Re1 {[%clk 0:02:55]}  Bg4 {[%clk 0:02:47]} 12. Be3 {[%clk 0:02:54]}  f5 {[%clk 0:02:43]} 13. h3 {[%clk 0:02:31]}  fxe4 {[%clk 0:02:40]} 14. Bxe4 {[%clk 0:02:11]}  Bf5 {[%clk 0:02:33]} 15. Bg5 {[%clk 0:02:04]}  Bxe4 {[%clk 0:02:30]} 16. Rxe4 {[%clk 0:01:56]}  Qd7 {[%clk 0:02:29]} 17. Qb3+ {[%clk 0:01:48]}  Kh8 {[%clk 0:02:24]} 18. Rae1 {[%clk 0:01:34]}  Nf5 {[%clk 0:02:23]} 19. Nd5 {[%clk 0:01:01]}  Ncxd4 {[%clk 0:02:15]} 20. Nxd4 {[%clk 0:01:00]}  Nxd4 {[%clk 0:02:16]} 21. Qd3 {[%clk 0:00:54]}  Qf5 {[%clk 0:02:09]} 22. Rxd4 {[%clk 0:00:33]}  Qxf2+ {[%clk 0:02:07]} 23. Kh2 {[%clk 0:00:28]}  Qxe1 {[%clk 0:02:04]} 24. Rh4 {[%clk 0:00:23]}  Be5+ {[%clk 0:01:55]} 25. Bf4 {[%clk 0:00:23]}  Qxh4 {[%clk 0:01:54]} 26. g3 {[%clk 0:00:17]}  Bxf4 {[%clk 0:01:51]} 27. Qd4+ {[%clk 0:00:15]}  Kg8 {[%clk 0:01:46]} 28. Nxf4 {[%clk 0:00:15]}  Qf6 {[%clk 0:01:46]} 29. Qd5+ {[%clk 0:00:16]}  Kh8 {[%clk 0:01:46]} 30. h4 {[%clk 0:00:10]}  Qxb2+ {[%clk 0:01:46]} 31. Kh3 {[%clk 0:00:10]}  Rae8 {[%clk 0:01:45]} 32. Ne6 {[%clk 0:00:10]}  Rxe6 {[%clk 0:01:42]} 33. Qxe6 {[%clk 0:00:10]}  Qf6 {[%clk 0:01:42]} 34. Qe4 {[%clk 0:00:10]}  Qf5+ {[%clk 0:01:43]} 0-1


[Site "https://www.chess.com"]

[Event "Titled Tuesday Blitz December 13 Late 2022"]
[White "Goltsev, Dmitry"]
[Black "Bluebaum, Matthias"]
[WhiteFideId "24176710"]
[BlackFideId "24651516"]
[WhiteElo "2327"]
[BlackElo "2634"]
[Result "1-0"]
[Round "03"]
[TimeControl "180+1"]
[Date "2022.12.13"]
[WhiteClock "0:00:43"]
[BlackClock "0:00:02"]

1. e4 {[%clk 0:03:00]}  e6 {[%clk 0:03:00]} 2. d4 {[%clk 0:03:00]}  d5 {[%clk 0:03:01]} 3. exd5 {[%clk 0:03:01]}  exd5 {[%clk 0:03:02]} 4. Nf3 {[%clk 0:03:01]}  Nc6 {[%clk 0:03:02]} 5. Bd3 {[%clk 0:03:02]}  Nb4 {[%clk 0:03:01]} 6. Bb5+ {[%clk 0:02:58]}  c6 {[%clk 0:03:01]} 7. Ba4 {[%clk 0:02:59]}  Bd6 {[%clk 0:02:51]} 8. O-O {[%clk 0:02:58]}  Ne7 {[%clk 0:02:51]} 9. c3 {[%clk 0:02:57]}  Na6 {[%clk 0:02:52]} 10. Bc2 {[%clk 0:02:57]}  Nc7 {[%clk 0:02:51]} 11. Re1 {[%clk 0:02:57]}  O-O {[%clk 0:02:51]} 12. Bg5 {[%clk 0:02:54]}  f6 {[%clk 0:02:51]} 13. Bh4 {[%clk 0:02:54]}  Bf5 {[%clk 0:02:47]} 14. Nbd2 {[%clk 0:02:52]}  Qd7 {[%clk 0:02:45]} 15. Bg3 {[%clk 0:02:50]}  Rae8 {[%clk 0:02:32]} 16. Rxe7 {[%clk 0:02:41]}  Bxe7 {[%clk 0:02:05]} 17. Bxf5 {[%clk 0:02:41]}  Qxf5 {[%clk 0:02:06]} 18. Bxc7 {[%clk 0:02:41]}  Bd8 {[%clk 0:01:52]} 19. Bxd8 {[%clk 0:02:41]}  Rxd8 {[%clk 0:01:53]} 20. Qf1 {[%clk 0:02:39]}  Rfe8 {[%clk 0:01:52]} 21. Re1 {[%clk 0:02:37]}  Qc2 {[%clk 0:01:52]} 22. Rxe8+ {[%clk 0:02:33]}  Rxe8 {[%clk 0:01:53]} 23. Qb1 {[%clk 0:02:31]}  Qxb1+ {[%clk 0:01:45]} 24. Nxb1 {[%clk 0:02:32]}  g5 {[%clk 0:01:46]} 25. Kf1 {[%clk 0:02:31]}  Kf7 {[%clk 0:01:45]} 26. Nbd2 {[%clk 0:02:31]}  h5 {[%clk 0:01:46]} 27. Ne1 {[%clk 0:02:29]}  h4 {[%clk 0:01:43]} 28. Nd3 {[%clk 0:02:29]}  b6 {[%clk 0:01:43]} 29. Nb4 {[%clk 0:02:29]}  Rc8 {[%clk 0:01:43]} 30. Nb3 {[%clk 0:02:26]}  Ke6 {[%clk 0:01:44]} 31. Nc1 {[%clk 0:02:25]}  c5 {[%clk 0:01:43]} 32. Nc2 {[%clk 0:02:25]}  Kd6 {[%clk 0:01:39]} 33. Nd3 {[%clk 0:02:25]}  c4 {[%clk 0:01:27]} 34. Nde1 {[%clk 0:02:22]}  b5 {[%clk 0:01:22]} 35. Ke2 {[%clk 0:02:16]}  a5 {[%clk 0:01:23]} 36. Kd2 {[%clk 0:02:16]}  Rb8 {[%clk 0:01:19]} 37. a3 {[%clk 0:02:14]}  Rg8 {[%clk 0:01:03]} 38. Ne3 {[%clk 0:02:14]}  Ke6 {[%clk 0:01:01]} 39. Nf3 {[%clk 0:02:10]}  Rg7 {[%clk 0:00:55]} 40. h3 {[%clk 0:02:08]}  Rg8 {[%clk 0:00:55]} 41. Nh2 {[%clk 0:02:05]}  Rg7 {[%clk 0:00:54]} 42. Nhg4 {[%clk 0:02:03]}  Rg6 {[%clk 0:00:51]} 43. Nh2 {[%clk 0:01:59]}  Rg8 {[%clk 0:00:51]} 44. Nf3 {[%clk 0:01:59]}  Rg7 {[%clk 0:00:51]} 45. Ke2 {[%clk 0:01:54]}  Rg8 {[%clk 0:00:51]} 46. g4 {[%clk 0:01:37]}  Rb8 {[%clk 0:00:40]} 47. Nc2 {[%clk 0:01:28]}  Rg8 {[%clk 0:00:39]} 48. Nd2 {[%clk 0:01:28]}  f5 {[%clk 0:00:37]} 49. gxf5+ {[%clk 0:01:23]}  Kxf5 {[%clk 0:00:38]} 50. Ne3+ {[%clk 0:01:23]}  Ke6 {[%clk 0:00:38]} 51. Nf3 {[%clk 0:01:21]}  Rg7 {[%clk 0:00:36]} 52. Ne5 {[%clk 0:01:18]}  Rb7 {[%clk 0:00:36]} 53. Nc6 {[%clk 0:01:18]}  Rb6 {[%clk 0:00:14]} 54. Nd8+ {[%clk 0:01:08]}  Kd7 {[%clk 0:00:11]} 55. Nf7 {[%clk 0:01:09]}  b4 {[%clk 0:00:11]} 56. axb4 {[%clk 0:01:07]}  axb4 {[%clk 0:00:12]} 57. Nxd5 {[%clk 0:01:07]}  Re6+ {[%clk 0:00:11]} 58. Ne5+ {[%clk 0:01:07]}  Kd6 {[%clk 0:00:11]} 59. Nxb4 {[%clk 0:01:07]}  g4 {[%clk 0:00:10]} 60. hxg4 {[%clk 0:01:04]}  h3 {[%clk 0:00:11]} 61. Kf1 {[%clk 0:01:04]}  Re8 {[%clk 0:00:09]} 62. Nxc4+ {[%clk 0:01:03]}  Ke6 {[%clk 0:00:10]} 63. Ne3 {[%clk 0:01:02]}  Kf6 {[%clk 0:00:10]} 64. Nd3 {[%clk 0:01:02]}  Kg5 {[%clk 0:00:10]} 65. Ne5 {[%clk 0:00:55]}  Kf4 {[%clk 0:00:09]} 66. Kg1 {[%clk 0:00:54]}  Ke4 {[%clk 0:00:09]} 67. Kh2 {[%clk 0:00:53]}  Rf8 {[%clk 0:00:09]} 68. Nf5 {[%clk 0:00:52]}  Rh8 {[%clk 0:00:07]} 69. Ng3+ {[%clk 0:00:48]}  Kf4 {[%clk 0:00:06]} 70. Nh5+ {[%clk 0:00:49]}  Ke4 {[%clk 0:00:06]} 71. Kxh3 {[%clk 0:00:50]}  Rb8 {[%clk 0:00:05]} 72. Ng3+ {[%clk 0:00:46]}  Kf4 {[%clk 0:00:06]} 73. Kg2 {[%clk 0:00:45]}  Rb7 {[%clk 0:00:03]} 74. b4 {[%clk 0:00:44]}  Kg5 {[%clk 0:00:03]} 75. d5 {[%clk 0:00:43]}  Kh4 {[%clk 0:00:03]} 76. d6 {[%clk 0:00:42]}  Rg7 {[%clk 0:00:02]} 77. d7 {[%clk 0:00:42]}  Rg8 {[%clk 0:00:02]} 78. Nc6 {[%clk 0:00:43]} 1-0


[Site "https://www.chess.com"]

[Event "Titled Tuesday Blitz December 13 Late 2022"]
[White "Hajiyev, Kanan"]
[Black "Adel, Sara"]
[WhiteFideId "13404148"]
[BlackFideId "10616764"]
[WhiteElo "2118"]
[BlackElo "1997"]
[Result "0-1"]
[Round "03"]
[TimeControl "180+1"]
[Date "2022.12.14"]
[WhiteClock "0:00:42"]
[BlackClock "0:01:50"]

1. d4 {[%clk 0:03:00]}  Nf6 {[%clk 0:02:58]} 2. c4 {[%clk 0:03:00]}  g6 {[%clk 0:02:59]} 3. Nf3 {[%clk 0:03:00]}  Bg7 {[%clk 0:02:59]} 4. g3 {[%clk 0:03:01]}  d6 {[%clk 0:02:59]} 5. Bg2 {[%clk 0:03:01]}  O-O {[%clk 0:02:57]} 6. O-O {[%clk 0:03:02]}  Nc6 {[%clk 0:02:55]} 7. b3 {[%clk 0:03:03]}  e5 {[%clk 0:02:55]} 8. Bb2 {[%clk 0:03:04]}  Ne8 {[%clk 0:02:52]} 9. dxe5 {[%clk 0:03:02]}  Bg4 {[%clk 0:02:45]} 10. exd6 {[%clk 0:03:01]}  Bxb2 {[%clk 0:02:44]} 11. Nbd2 {[%clk 0:02:53]}  Bxa1 {[%clk 0:02:43]} 12. Qxa1 {[%clk 0:02:54]}  Qxd6 {[%clk 0:02:42]} 13. Ne4 {[%clk 0:02:46]}  Qe7 {[%clk 0:02:39]} 14. Nfd2 {[%clk 0:02:29]}  Qe5 {[%clk 0:02:33]} 15. Qc1 {[%clk 0:02:18]}  Bf5 {[%clk 0:02:33]} 16. Nc3 {[%clk 0:02:10]}  Nd4 {[%clk 0:02:32]} 17. e3 {[%clk 0:02:08]}  Nc6 {[%clk 0:02:21]} 18. Nf3 {[%clk 0:02:07]}  Qg7 {[%clk 0:02:18]} 19. Nd5 {[%clk 0:02:05]}  Be4 {[%clk 0:02:18]} 20. Nf4 {[%clk 0:01:59]}  Bxf3 {[%clk 0:02:15]} 21. Bxf3 {[%clk 0:02:00]}  Nf6 {[%clk 0:02:16]} 22. h4 {[%clk 0:01:49]}  Ne5 {[%clk 0:02:15]} 23. Bxb7 {[%clk 0:01:47]}  Rad8 {[%clk 0:02:11]} 24. Bg2 {[%clk 0:01:48]}  Nd3 {[%clk 0:02:11]} 25. Qa3 {[%clk 0:01:43]}  Nxf4 {[%clk 0:02:10]} 26. exf4 {[%clk 0:01:44]}  Rd2 {[%clk 0:02:10]} 27. Qxa7 {[%clk 0:01:43]}  Re8 {[%clk 0:02:08]} 28. a4 {[%clk 0:01:39]}  Ng4 {[%clk 0:02:08]} 29. Bf3 {[%clk 0:01:33]}  h5 {[%clk 0:01:55]} 30. Qxc7 {[%clk 0:01:12]}  Nxf2 {[%clk 0:01:55]} 31. Bg2 {[%clk 0:00:54]}  Qd4 {[%clk 0:01:52]} 32. Kh2 {[%clk 0:00:53]}  Ng4+ {[%clk 0:01:51]} 33. Kh3 {[%clk 0:00:54]}  Rxg2 {[%clk 0:01:51]} 34. Kxg2 {[%clk 0:00:42]}  Re2+ {[%clk 0:01:50]} 0-1


[Site "https://www.chess.com"]

[Event "Titled Tuesday Blitz December 13 Late 2022"]
[White "Han, Yichen"]
[Black "Arbunic Castro, Giovanna"]
[WhiteFideId "1054430"]
[BlackFideId "3400549"]
[WhiteElo "2323"]
[BlackElo "1952"]
[Result "1-0"]
[Round "03"]
[TimeControl "180+1"]
[Date "2022.12.14"]
[WhiteClock "0:01:37"]
[BlackClock "0:00:04"]

1. Nf3 {[%clk 0:03:00]}  Nf6 {[%clk 0:02:58]} 2. g3 {[%clk 0:03:01]}  g6 {[%clk 0:02:58]} 3. Bg2 {[%clk 0:03:01]}  Bg7 {[%clk 0:02:58]} 4. O-O {[%clk 0:03:02]}  O-O {[%clk 0:02:58]} 5. c4 {[%clk 0:03:02]}  d6 {[%clk 0:02:57]} 6. Nc3 {[%clk 0:03:02]}  e5 {[%clk 0:02:57]} 7. e4 {[%clk 0:03:01]}  c6 {[%clk 0:02:48]} 8. d3 {[%clk 0:03:02]}  Re8 {[%clk 0:02:39]} 9. h3 {[%clk 0:03:02]}  d5 {[%clk 0:02:38]} 10. cxd5 {[%clk 0:03:00]}  cxd5 {[%clk 0:02:37]} 11. Bg5 {[%clk 0:03:00]}  d4 {[%clk 0:02:30]} 12. Nd5 {[%clk 0:03:00]}  Nbd7 {[%clk 0:02:29]} 13. Rc1 {[%clk 0:02:59]}  Rb8 {[%clk 0:02:15]} 14. Qd2 {[%clk 0:02:56]}  h6 {[%clk 0:02:13]} 15. Bxh6 {[%clk 0:02:56]}  Nxd5 {[%clk 0:02:12]} 16. exd5 {[%clk 0:02:57]}  Nb6 {[%clk 0:02:11]} 17. h4 {[%clk 0:02:34]}  Nxd5 {[%clk 0:01:59]} 18. h5 {[%clk 0:02:34]}  Be6 {[%clk 0:01:26]} 19. Nh4 {[%clk 0:02:25]}  Ne3 {[%clk 0:01:15]} 20. Bxe3 {[%clk 0:02:19]}  dxe3 {[%clk 0:01:13]} 21. Qxe3 {[%clk 0:02:20]}  gxh5 {[%clk 0:01:05]} 22. Be4 {[%clk 0:02:19]}  Qf6 {[%clk 0:00:40]} 23. Rc7 {[%clk 0:02:11]}  Bh6 {[%clk 0:00:37]} 24. Qf3 {[%clk 0:02:09]}  Qg5 {[%clk 0:00:33]} 25. Bf5 {[%clk 0:02:02]}  Bxf5 {[%clk 0:00:19]} 26. Nxf5 {[%clk 0:02:03]}  Bf8 {[%clk 0:00:19]} 27. Nd6 {[%clk 0:01:43]}  Re7 {[%clk 0:00:12]} 28. Ne4 {[%clk 0:01:43]}  Qg6 {[%clk 0:00:10]} 29. Nf6+ {[%clk 0:01:43]}  Kg7 {[%clk 0:00:10]} 30. Nxh5+ {[%clk 0:01:44]}  Kh6 {[%clk 0:00:10]} 31. Rc4 {[%clk 0:01:40]}  e4 {[%clk 0:00:06]} 32. Qf4+ {[%clk 0:01:37]}  Kxh5 {[%clk 0:00:04]} 33. Qh4# {[%clk 0:01:37]} 1-0


[Site "https://www.chess.com"]